[Event "*** Titled Tuesday Blitz"]
[Site "Chess.com"]
[Date "2020.10.27"]
[Round "10"]
[White "Kaliopa"]
[Black "Generalas"]
[Result "0-1"]
[WhiteElo "2217"]
[BlackElo "2337"]
[TimeControl "180+1"]
[EndTime "11:56:03 PDT"]
[Termination "Generalas won on time"]

1. a3 {[%clk 0:03:00.9]} 1... e5 {[%clk 0:02:57.6]} 2. c4 {[%clk 0:03:00.6]}
2... Nf6 {[%clk 0:02:56.9]} 3. d3 {[%clk 0:02:58.1]} 3... d5 {[%clk 0:02:56.3]}
4. cxd5 {[%clk 0:02:58]} 4... Nxd5 {[%clk 0:02:57.2]} 5. Nf3 {[%clk 0:02:57.9]}
5... Nc6 {[%clk 0:02:54.2]} 6. e3 {[%clk 0:02:57.7]} 6... Be7 {[%clk 0:02:53.2]}
7. Be2 {[%clk 0:02:55.5]} 7... O-O {[%clk 0:02:52.6]} 8. O-O {[%clk 0:02:55.5]}
8... Be6 {[%clk 0:02:52.4]} 9. Qc2 {[%clk 0:02:53.6]} 9... a5 {[%clk 0:02:48.9]}
10. Nc3 {[%clk 0:02:50.4]} 10... Qd7 {[%clk 0:02:47.7]} 11. Bd2 {[%clk
0:02:49.5]} 11... f5 {[%clk 0:02:45.9]} 12. Nxd5 {[%clk 0:02:40]} 12... Bxd5
{[%clk 0:02:45.5]} 13. Bc3 {[%clk 0:02:39.2]} 13... Qe6 {[%clk 0:02:42.7]} 14.
Rfe1 {[%clk 0:02:17.8]} 14... Rae8 {[%clk 0:02:38.4]} 15. e4 {[%clk 0:02:12.3]}
15... Bb3 {[%clk 0:02:27.8]} 16. Qd2 {[%clk 0:02:10.7]} 16... f4 {[%clk
0:02:21.9]} 17. d4 {[%clk 0:02:08.5]} 17... exd4 {[%clk 0:02:19.4]} 18. Nxd4
{[%clk 0:02:07.2]} 18... Nxd4 {[%clk 0:02:13.2]} 19. Bxd4 {[%clk 0:02:04.8]}
19... Rd8 {[%clk 0:02:11.8]} 20. Qc3 {[%clk 0:02:00.9]} 20... Rf7 {[%clk
0:01:49.7]} 21. Bf3 {[%clk 0:01:26.8]} 21... c5 {[%clk 0:01:44.7]} 22. Be5
{[%clk 0:01:07]} 22... c4 {[%clk 0:01:43.9]} 23. Bd4 {[%clk 0:01:02.1]} 23... b5
{[%clk 0:01:42.7]} 24. Qxa5 {[%clk 0:00:15.6]} 24... Rxd4 {[%clk 0:01:40.7]} 25.
Qxb5 {[%clk 0:00:15.6]} 25... Rd2 {[%clk 0:01:32.3]} 26. Rab1 {[%clk 0:00:07.8]}
26... Bf8 {[%clk 0:01:09.2]} 27. a4 {[%clk 0:00:06.9]} 27... Rfd7 {[%clk
0:01:02.2]} 28. a5 {[%clk 0:00:05.2]} 28... Qd6 {[%clk 0:00:42.3]} 29. e5 {[%clk
0:00:04.8]} 29... Qd4 {[%clk 0:00:42]} 30. Rf1 {[%clk 0:00:02.4]} 30... Qc5
{[%clk 0:00:39.8]} 31. Qxc5 {[%clk 0:00:01.9]} 31... Bxc5 {[%clk 0:00:40.2]} 32.
a6 {[%clk 0:00:02]} 32... Ra7 {[%clk 0:00:37.1]} 33. Bb7 {[%clk 0:00:02.1]}
33... Kf7 {[%clk 0:00:36.9]} 0-1

[Event "*** Titled Tuesday Blitz"]
[Site "Chess.com"]
[Date "2020.10.27"]
[Round "10"]
[White "GigaQuparadze"]
[Black "Shubinkirill2003"]
[Result "1-0"]
[WhiteElo "2850"]
[BlackElo "2687"]
[TimeControl "180+1"]
[EndTime "11:56:04 PDT"]
[Termination "GigaQuparadze won by resignation"]

1. e4 {[%clk 0:03:00.9]} 1... e6 {[%clk 0:02:59.7]} 2. Qe2 {[%clk 0:03:00.5]}
2... c5 {[%clk 0:02:59.5]} 3. c3 {[%clk 0:02:58.6]} 3... Nc6 {[%clk 0:02:59.5]}
4. g3 {[%clk 0:02:58.5]} 4... g6 {[%clk 0:02:59.3]} 5. Bg2 {[%clk 0:02:58.7]}
5... Bg7 {[%clk 0:02:59.5]} 6. h4 {[%clk 0:02:59.2]} 6... h6 {[%clk 0:02:59.4]}
7. d3 {[%clk 0:02:58.3]} 7... Nge7 {[%clk 0:02:59]} 8. Be3 {[%clk 0:02:55.5]}
8... d6 {[%clk 0:02:58.6]} 9. Nd2 {[%clk 0:02:55.9]} 9... e5 {[%clk 0:02:58.3]}
10. f4 {[%clk 0:02:53.6]} 10... O-O {[%clk 0:02:55.6]} 11. h5 {[%clk 0:02:53.4]}
11... exf4 {[%clk 0:02:47.2]} 12. gxf4 {[%clk 0:02:50.4]} 12... d5 {[%clk
0:02:46.4]} 13. Bxc5 {[%clk 0:02:48.6]} 13... d4 {[%clk 0:02:42.9]} 14. e5
{[%clk 0:02:47.1]} 14... dxc3 {[%clk 0:02:40]} 15. bxc3 {[%clk 0:02:48]} 15...
Qa5 {[%clk 0:02:39.3]} 16. Nb3 {[%clk 0:02:32.7]} 16... Qxc3+ {[%clk 0:02:38.5]}
17. Qd2 {[%clk 0:02:29.8]} 17... Qxd2+ {[%clk 0:02:36.5]} 18. Kxd2 {[%clk
0:02:30.7]} 18... Rd8 {[%clk 0:02:31]} 19. hxg6 {[%clk 0:02:27.5]} 19... Nxg6
{[%clk 0:02:26.4]} 20. Ne2 {[%clk 0:02:25.8]} 20... Bf5 {[%clk 0:02:25.2]} 21.
d4 {[%clk 0:02:26.1]} 21... Rac8 {[%clk 0:02:21.9]} 22. Rac1 {[%clk 0:02:18.6]}
22... a5 {[%clk 0:02:15.9]} 23. Bb6 {[%clk 0:02:15.2]} 23... a4 {[%clk
0:02:11.3]} 24. Na5 {[%clk 0:01:56.2]} 24... Nxa5 {[%clk 0:01:52.5]} 25. Bxa5
{[%clk 0:01:57.1]} 25... Rxc1 {[%clk 0:01:45.9]} 26. Rxc1 {[%clk 0:01:55.6]}
26... Ra8 {[%clk 0:01:45.9]} 27. Bb4 {[%clk 0:01:53.5]} 27... Bg4 {[%clk
0:01:44.4]} 28. Rf1 {[%clk 0:01:43.5]} 28... h5 {[%clk 0:01:37]} 29. Be4 {[%clk
0:01:41.9]} 29... Bh6 {[%clk 0:01:31.1]} 30. Bxg6 {[%clk 0:01:30.4]} 30... fxg6
{[%clk 0:01:32]} 31. d5 {[%clk 0:01:30.9]} 31... h4 {[%clk 0:01:26.5]} 32. Rg1
{[%clk 0:01:28.8]} 32... Bf5 {[%clk 0:01:24.6]} 33. Ke3 {[%clk 0:01:27]} 33...
Kh7 {[%clk 0:01:08.9]} 34. Nd4 {[%clk 0:01:26.4]} 34... Re8 {[%clk 0:00:59.6]}
35. e6 {[%clk 0:01:20.7]} 35... Bg7 {[%clk 0:00:49]} 36. Nxf5 {[%clk 0:01:20.1]}
36... gxf5 {[%clk 0:00:49.9]} 37. Bd6 {[%clk 0:01:15.6]} 37... Bf6 {[%clk
0:00:46.4]} 38. Be5 {[%clk 0:01:15.6]} 38... Bd8 {[%clk 0:00:42.3]} 39. Kf3
{[%clk 0:01:14.1]} 39... b5 {[%clk 0:00:31.6]} 40. Rg7+ {[%clk 0:01:10.5]} 40...
Kh6 {[%clk 0:00:31.5]} 41. Rb7 {[%clk 0:01:10.9]} 41... Rg8 {[%clk 0:00:29.1]}
42. Rxb5 {[%clk 0:00:57.9]} 42... h3 {[%clk 0:00:29]} 43. Rb1 {[%clk 0:00:57.8]}
43... Bh4 {[%clk 0:00:29.5]} 44. Rh1 {[%clk 0:00:56]} 44... Rg3+ {[%clk
0:00:29.5]} 45. Ke2 {[%clk 0:00:56.2]} 45... Ra3 {[%clk 0:00:26.4]} 46. d6
{[%clk 0:00:55.3]} 46... Rxa2+ {[%clk 0:00:22.3]} 47. Kd3 {[%clk 0:00:55.1]}
47... h2 {[%clk 0:00:22.3]} 48. e7 {[%clk 0:00:54.7]} 1-0

[Event "*** Titled Tuesday Blitz"]
[Site "Chess.com"]
[Date "2020.10.27"]
[Round "10"]
[White "Chessmatus"]
[Black "szefru"]
[Result "1-0"]
[WhiteElo "2408"]
[BlackElo "2264"]
[TimeControl "180+1"]
[EndTime "11:56:08 PDT"]
[Termination "Chessmatus won by checkmate"]

1. e4 {[%clk 0:03:00.9]} 1... Nf6 {[%clk 0:02:59]} 2. e5 {[%clk 0:02:59.5]} 2...
Nd5 {[%clk 0:02:59.2]} 3. d4 {[%clk 0:03:00.2]} 3... d6 {[%clk 0:02:58.4]} 4.
Nf3 {[%clk 0:03:00.9]} 4... g6 {[%clk 0:02:57.9]} 5. Bc4 {[%clk 0:02:56.4]} 5...
c6 {[%clk 0:02:58.1]} 6. Qe2 {[%clk 0:02:52.8]} 6... Bg7 {[%clk 0:02:57]} 7. O-O
{[%clk 0:02:48.8]} 7... O-O {[%clk 0:02:56.7]} 8. a4 {[%clk 0:02:32]} 8... Bg4
{[%clk 0:02:55.9]} 9. Re1 {[%clk 0:02:30.1]} 9... dxe5 {[%clk 0:02:41.5]} 10.
dxe5 {[%clk 0:02:29.1]} 10... Nd7 {[%clk 0:02:41.5]} 11. e6 {[%clk 0:02:25.5]}
11... Bxe6 {[%clk 0:02:39.1]} 12. Ng5 {[%clk 0:02:21.5]} 12... Bf5 {[%clk
0:02:19.9]} 13. Nd2 {[%clk 0:02:21.4]} 13... e5 {[%clk 0:02:15]} 14. Nde4 {[%clk
0:02:17.5]} 14... h6 {[%clk 0:02:01]} 15. Nf3 {[%clk 0:02:16.5]} 15... Nf4
{[%clk 0:01:48.8]} 16. Bxf4 {[%clk 0:02:10.7]} 16... exf4 {[%clk 0:01:48.8]} 17.
Nd6 {[%clk 0:02:11.4]} 17... Bg4 {[%clk 0:01:41.4]} 18. Nxf7 {[%clk 0:01:47.5]}
18... Rxf7 {[%clk 0:01:37.7]} 19. Bxf7+ {[%clk 0:01:48.4]} 19... Kxf7 {[%clk
0:01:26.9]} 20. Qc4+ {[%clk 0:01:48.9]} 20... Kf8 {[%clk 0:01:24.2]} 21. Qxf4+
{[%clk 0:01:49.2]} 21... Nf6 {[%clk 0:01:15.2]} 22. Rad1 {[%clk 0:01:49.7]}
22... Qb8 {[%clk 0:01:09.8]} 23. Qb4+ {[%clk 0:01:47.2]} 23... Kg8 {[%clk
0:01:08.8]} 24. Re7 {[%clk 0:01:43.3]} 24... Bxf3 {[%clk 0:01:06]} 25. gxf3
{[%clk 0:01:41.9]} 25... b5 {[%clk 0:01:02.1]} 26. Qb3+ {[%clk 0:01:41.1]} 26...
Kh7 {[%clk 0:01:02.1]} 27. Qe6 {[%clk 0:01:36.4]} 27... Qf4 {[%clk 0:01:00.4]}
28. Qf7 {[%clk 0:01:23.5]} 28... Rg8 {[%clk 0:00:59.9]} 29. Rd8 {[%clk
0:01:06.5]} 29... Qg5+ {[%clk 0:00:59.9]} 30. Kf1 {[%clk 0:01:01]} 30... Qc1+
{[%clk 0:00:59.1]} 31. Re1 {[%clk 0:00:57.2]} 31... Qxc2 {[%clk 0:00:54.6]} 32.
Rxg8 {[%clk 0:00:56]} 32... Nxg8 {[%clk 0:00:55.3]} 33. axb5 {[%clk 0:00:53.9]}
33... cxb5 {[%clk 0:00:55.2]} 34. Re6 {[%clk 0:00:54.1]} 34... Qc4+ {[%clk
0:00:47.8]} 35. Kg2 {[%clk 0:00:52.5]} 35... a5 {[%clk 0:00:47.3]} 36. Qxg6+
{[%clk 0:00:50.4]} 36... Kh8 {[%clk 0:00:47.3]} 37. Re4 {[%clk 0:00:48.3]} 37...
Qb3 {[%clk 0:00:46]} 38. Rg4 {[%clk 0:00:48]} 38... Qxb2 {[%clk 0:00:46.2]} 39.
Qb6 {[%clk 0:00:42.7]} 39... a4 {[%clk 0:00:44.4]} 40. Re4 {[%clk 0:00:36]}
40... a3 {[%clk 0:00:43.5]} 41. Re8 {[%clk 0:00:35.6]} 41... Kh7 {[%clk
0:00:40.7]} 42. Qe6 {[%clk 0:00:28.8]} 42... Nf6 {[%clk 0:00:39.9]} 43. Qf5#
{[%clk 0:00:29.1]} 1-0

[Event "*** Titled Tuesday Blitz"]
[Site "Chess.com"]
[Date "2020.10.27"]
[Round "10"]
[White "FairChess_on_YouTube"]
[Black "Bigfish1995"]
[Result "0-1"]
[WhiteElo "2980"]
[BlackElo "3029"]
[TimeControl "180+1"]
[EndTime "11:56:10 PDT"]
[Termination "Bigfish1995 won by resignation"]

1. d4 {[%clk 0:03:00.9]} 1... d5 {[%clk 0:02:59]} 2. c4 {[%clk 0:03:01.1]} 2...
e6 {[%clk 0:02:59.4]} 3. Nc3 {[%clk 0:03:00.8]} 3... h6 {[%clk 0:02:58.9]} 4.
Bf4 {[%clk 0:02:58]} 4... Nf6 {[%clk 0:02:57.3]} 5. e3 {[%clk 0:02:58.4]} 5...
a6 {[%clk 0:02:53.9]} 6. Rc1 {[%clk 0:02:56.1]} 6... dxc4 {[%clk 0:02:47.2]} 7.
Bxc4 {[%clk 0:02:57]} 7... Bd6 {[%clk 0:02:47.1]} 8. Bxd6 {[%clk 0:02:53.2]}
8... cxd6 {[%clk 0:02:46.3]} 9. Nf3 {[%clk 0:02:52.8]} 9... O-O {[%clk
0:02:45.8]} 10. O-O {[%clk 0:02:52.9]} 10... b5 {[%clk 0:02:45.4]} 11. Bd3
{[%clk 0:02:51.2]} 11... Bb7 {[%clk 0:02:45.1]} 12. Nd2 {[%clk 0:02:50.4]} 12...
Nbd7 {[%clk 0:02:38]} 13. Nce4 {[%clk 0:02:50.3]} 13... Ne8 {[%clk 0:02:33.8]}
14. Rc3 {[%clk 0:02:46.7]} 14... Nb6 {[%clk 0:02:15.2]} 15. Qh5 {[%clk
0:02:34.1]} 15... f5 {[%clk 0:02:01.1]} 16. Ng3 {[%clk 0:02:34.1]} 16... Nf6
{[%clk 0:02:00.2]} 17. Qh4 {[%clk 0:02:32.3]} 17... Nbd5 {[%clk 0:01:41.2]} 18.
Rcc1 {[%clk 0:02:32.2]} 18... Qa5 {[%clk 0:01:33.9]} 19. Nf3 {[%clk 0:02:22.4]}
19... Qxa2 {[%clk 0:01:27.4]} 20. e4 {[%clk 0:02:22.2]} 20... fxe4 {[%clk
0:01:09]} 21. Nxe4 {[%clk 0:02:23.1]} 21... Nb4 {[%clk 0:01:05.5]} 22. Bb1
{[%clk 0:01:57.7]} 22... Qxb2 {[%clk 0:00:57]} 23. Rc7 {[%clk 0:01:42.5]} 23...
Bxe4 {[%clk 0:00:54.5]} 24. Bxe4 {[%clk 0:01:42.4]} 24... Rac8 {[%clk
0:00:51.9]} 25. Rxc8 {[%clk 0:01:00.5]} 25... Rxc8 {[%clk 0:00:51.6]} 26. Qh3
{[%clk 0:01:00.9]} 26... Kf7 {[%clk 0:00:44.1]} 27. Bb7 {[%clk 0:00:34.6]} 27...
Rc1 {[%clk 0:00:41.3]} 28. g3 {[%clk 0:00:25.2]} 28... Nd3 {[%clk 0:00:33.6]}
29. Rxc1 {[%clk 0:00:12.6]} 29... Qxf2+ {[%clk 0:00:26.7]} 30. Kh1 {[%clk
0:00:11.9]} 30... Nxc1 {[%clk 0:00:27.1]} 31. Qg2 {[%clk 0:00:04.3]} 31... Qxg2+
{[%clk 0:00:26.5]} 32. Kxg2 {[%clk 0:00:05.2]} 32... a5 {[%clk 0:00:26.5]} 33.
Nd2 {[%clk 0:00:05.4]} 33... a4 {[%clk 0:00:25.5]} 34. Bc6 {[%clk 0:00:05.5]}
34... a3 {[%clk 0:00:25.2]} 0-1

[Event "*** Titled Tuesday Blitz"]
[Site "Chess.com"]
[Date "2020.10.27"]
[Round "10"]
[White "shnitez"]
[Black "albano87"]
[Result "0-1"]
[WhiteElo "2423"]
[BlackElo "2328"]
[TimeControl "180+1"]
[EndTime "11:56:16 PDT"]
[Termination "albano87 won on time"]

1. c4 {[%clk 0:03:00.9]} 1... e6 {[%clk 0:02:59.5]} 2. Nf3 {[%clk 0:03:00.3]}
2... d5 {[%clk 0:03:00.4]} 3. b3 {[%clk 0:02:58.5]} 3... Nf6 {[%clk 0:03:00.5]}
4. Bb2 {[%clk 0:02:56.6]} 4... Be7 {[%clk 0:03:01.3]} 5. g3 {[%clk 0:02:55.6]}
5... O-O {[%clk 0:03:02]} 6. Bg2 {[%clk 0:02:55.9]} 6... c5 {[%clk 0:03:02.6]}
7. e3 {[%clk 0:02:54.5]} 7... Nc6 {[%clk 0:03:03.3]} 8. O-O {[%clk 0:02:53.1]}
8... Re8 {[%clk 0:03:03.2]} 9. Qe2 {[%clk 0:02:39.2]} 9... b6 {[%clk 0:02:57.7]}
10. Nc3 {[%clk 0:02:31.3]} 10... Bb7 {[%clk 0:02:55.9]} 11. Rfd1 {[%clk
0:02:18]} 11... Rc8 {[%clk 0:02:52.9]} 12. d4 {[%clk 0:02:12.6]} 12... cxd4
{[%clk 0:02:53.3]} 13. exd4 {[%clk 0:02:12.5]} 13... dxc4 {[%clk 0:02:52]} 14.
bxc4 {[%clk 0:02:13.4]} 14... Na5 {[%clk 0:02:52.3]} 15. Ne5 {[%clk 0:02:02.1]}
15... Bxg2 {[%clk 0:02:48]} 16. Kxg2 {[%clk 0:02:03]} 16... Qc7 {[%clk
0:02:48.6]} 17. Nb5 {[%clk 0:01:42.9]} 17... Qb7+ {[%clk 0:02:48.6]} 18. Kg1
{[%clk 0:01:26.2]} 18... a6 {[%clk 0:02:46.3]} 19. Na3 {[%clk 0:01:24.6]} 19...
Nd7 {[%clk 0:02:22.7]} 20. Nxd7 {[%clk 0:00:53.8]} 20... Qxd7 {[%clk 0:02:22.1]}
21. Rac1 {[%clk 0:00:52.3]} 21... Qa4 {[%clk 0:02:18.8]} 22. Qd3 {[%clk
0:00:47.3]} 22... Bxa3 {[%clk 0:02:14.4]} 23. Qxa3 {[%clk 0:00:17.3]} 23... Qxa3
{[%clk 0:02:13.4]} 24. Bxa3 {[%clk 0:00:18.2]} 24... Rxc4 {[%clk 0:02:06.1]} 25.
Rxc4 {[%clk 0:00:17.6]} 25... Nxc4 {[%clk 0:02:06.2]} 26. Bb4 {[%clk 0:00:18.1]}
26... b5 {[%clk 0:02:06.1]} 27. Kf1 {[%clk 0:00:14.3]} 27... Rc8 {[%clk
0:02:00.3]} 28. Ke2 {[%clk 0:00:13.6]} 28... Nb6 {[%clk 0:02:01]} 29. Bc5 {[%clk
0:00:12.9]} 29... Nd5 {[%clk 0:02:01.3]} 30. Kd3 {[%clk 0:00:12.5]} 30... f6
{[%clk 0:01:56.5]} 31. f4 {[%clk 0:00:09.3]} 31... Kf7 {[%clk 0:01:56.2]} 32. a4
{[%clk 0:00:08.6]} 32... b4 {[%clk 0:01:56]} 33. a5 {[%clk 0:00:08.2]} 33... Rb8
{[%clk 0:01:55.6]} 34. Rb1 {[%clk 0:00:07]} 34... Rb5 {[%clk 0:01:51.4]} 35. Kc4
{[%clk 0:00:04]} 35... Rxa5 {[%clk 0:01:51.7]} 36. Bxb4 {[%clk 0:00:04.4]} 36...
Ra4 {[%clk 0:01:50]} 37. Kc5 {[%clk 0:00:03.5]} 37... Nxb4 {[%clk 0:01:49.2]}
38. Rxb4 {[%clk 0:00:04.1]} 38... Rxb4 {[%clk 0:01:47.7]} 39. Kxb4 {[%clk
0:00:05]} 39... Ke7 {[%clk 0:01:41.6]} 40. Ka5 {[%clk 0:00:05.2]} 40... Kd6
{[%clk 0:01:42]} 41. Kxa6 {[%clk 0:00:06.1]} 41... Kd5 {[%clk 0:01:42.2]} 42.
Kb6 {[%clk 0:00:03.9]} 42... Kxd4 {[%clk 0:01:41.4]} 43. Kc6 {[%clk 0:00:04.4]}
43... e5 {[%clk 0:01:41.7]} 44. fxe5 {[%clk 0:00:02.6]} 44... fxe5 {[%clk
0:01:42.6]} 45. g4 {[%clk 0:00:02.7]} 45... e4 {[%clk 0:01:43.5]} 46. g5 {[%clk
0:00:03.6]} 46... e3 {[%clk 0:01:43.8]} 47. Kd6 {[%clk 0:00:04.5]} 47... e2
{[%clk 0:01:43.8]} 48. g6 {[%clk 0:00:05.4]} 48... h6 {[%clk 0:01:44.1]} 49. Ke7
{[%clk 0:00:05.2]} 49... e1=Q+ {[%clk 0:01:44.9]} 50. Kf7 {[%clk 0:00:06.1]}
50... Qe5 {[%clk 0:01:45.1]} 51. h4 {[%clk 0:00:07]} 51... Qf6+ {[%clk
0:01:45.7]} 52. Kg8 {[%clk 0:00:07.8]} 52... Qxg6 {[%clk 0:01:45.7]} 53. h5
{[%clk 0:00:08.7]} 53... Qxh5 {[%clk 0:01:45.9]} 54. Kh8 {[%clk 0:00:09.6]}
54... g5 {[%clk 0:01:45.6]} 55. Kh7 {[%clk 0:00:10.5]} 55... g4 {[%clk 0:01:46]}
56. Kg7 {[%clk 0:00:11.4]} 56... Qg5+ {[%clk 0:01:46.3]} 57. Kf7 {[%clk
0:00:10.8]} 57... g3 {[%clk 0:01:47.2]} 58. Ke6 {[%clk 0:00:11.7]} 58... g2
{[%clk 0:01:47.8]} 59. Kd7 {[%clk 0:00:12.6]} 59... g1=Q {[%clk 0:01:47.6]} 60.
Kc6 {[%clk 0:00:13.5]} 60... Q1c1+ {[%clk 0:01:47.3]} 61. Kd6 {[%clk 0:00:13.2]}
61... Qcc5+ {[%clk 0:01:47.7]} 62. Kd7 {[%clk 0:00:13]} 62... Qb6 {[%clk
0:01:47.1]} 63. Ke8 {[%clk 0:00:10.3]} 63... Qa6 {[%clk 0:01:45.7]} 64. Kf7
{[%clk 0:00:09.6]} 64... Qaf6+ {[%clk 0:01:44.5]} 0-1

[Event "*** Titled Tuesday Blitz"]
[Site "Chess.com"]
[Date "2020.10.27"]
[Round "10"]
[White "ajian"]
[Black "HouseOfDurin"]
[Result "1-0"]
[WhiteElo "2350"]
[BlackElo "2180"]
[TimeControl "180+1"]
[EndTime "11:56:16 PDT"]
[Termination "ajian won on time"]

1. d4 {[%clk 0:02:49.4]} 1... Nf6 {[%clk 0:02:58.9]} 2. c4 {[%clk 0:02:47.1]}
2... c5 {[%clk 0:02:59.2]} 3. d5 {[%clk 0:02:47]} 3... b5 {[%clk 0:02:59.8]} 4.
cxb5 {[%clk 0:02:47.9]} 4... a6 {[%clk 0:03:00.3]} 5. bxa6 {[%clk 0:02:48.8]}
5... Bxa6 {[%clk 0:03:00.6]} 6. Nc3 {[%clk 0:02:49.3]} 6... d6 {[%clk
0:03:01.1]} 7. g3 {[%clk 0:02:49.7]} 7... g6 {[%clk 0:03:00]} 8. Bg2 {[%clk
0:02:50.2]} 8... Nbd7 {[%clk 0:03:00.6]} 9. Nf3 {[%clk 0:02:50.7]} 9... Bg7
{[%clk 0:03:00.8]} 10. O-O {[%clk 0:02:51.2]} 10... O-O {[%clk 0:03:01.3]} 11.
Rb1 {[%clk 0:02:50.9]} 11... Ra7 {[%clk 0:03:00.8]} 12. b3 {[%clk 0:02:51]}
12... Qa8 {[%clk 0:02:59.2]} 13. Nh4 {[%clk 0:02:39.5]} 13... Rb8 {[%clk
0:02:55.1]} 14. Qc2 {[%clk 0:02:38.9]} 14... Nb6 {[%clk 0:02:25.4]} 15. Rd1
{[%clk 0:02:30.3]} 15... Ng4 {[%clk 0:01:18.2]} 16. h3 {[%clk 0:02:10]} 16...
Ne5 {[%clk 0:01:11.2]} 17. Bb2 {[%clk 0:02:02.9]} 17... c4 {[%clk 0:01:05.6]}
18. b4 {[%clk 0:01:59]} 18... Bb7 {[%clk 0:00:48.4]} 19. Ra1 {[%clk 0:01:56.6]}
19... Ned7 {[%clk 0:00:38.9]} 20. a4 {[%clk 0:01:51.8]} 20... Bxc3 {[%clk
0:00:37.1]} 21. Qxc3 {[%clk 0:01:51.6]} 21... f6 {[%clk 0:00:37.2]} 22. a5
{[%clk 0:01:47.9]} 22... Nxd5 {[%clk 0:00:36.9]} 23. Qxc4 {[%clk 0:01:47.2]}
23... e6 {[%clk 0:00:30.4]} 24. e4 {[%clk 0:01:38.2]} 24... Ba6 {[%clk
0:00:23.8]} 25. Qc1 {[%clk 0:01:12.1]} 25... Nxb4 {[%clk 0:00:18.5]} 26. e5
{[%clk 0:01:07]} 26... d5 {[%clk 0:00:18.3]} 27. exf6 {[%clk 0:01:06.6]} 27...
Nd3 {[%clk 0:00:15.8]} 28. Rxd3 {[%clk 0:01:05.8]} 28... Bxd3 {[%clk 0:00:14.7]}
29. Qh6 {[%clk 0:01:06.2]} 29... Ne5 {[%clk 0:00:13.3]} 30. Bxe5 {[%clk
0:01:03]} 30... Rbb7 {[%clk 0:00:12.2]} 31. Nf3 {[%clk 0:00:56.1]} 31... Be4
{[%clk 0:00:09.6]} 32. Ng5 {[%clk 0:00:55.2]} 32... Rxa5 {[%clk 0:00:08.5]} 33.
Rxa5 {[%clk 0:00:52.5]} 33... Qxa5 {[%clk 0:00:09.4]} 34. f7+ {[%clk 0:00:37.3]}
34... Rxf7 {[%clk 0:00:09]} 35. Nxf7 {[%clk 0:00:38.2]} 35... Qe1+ {[%clk
0:00:09]} 36. Kh2 {[%clk 0:00:36.4]} 36... Kxf7 {[%clk 0:00:09.1]} 37. Qxh7+
{[%clk 0:00:32.5]} 37... Ke8 {[%clk 0:00:09.2]} 38. Bd6 {[%clk 0:00:27.8]} 1-0

[Event "*** Titled Tuesday Blitz"]
[Site "Chess.com"]
[Date "2020.10.27"]
[Round "10"]
[White "Th3_Hound"]
[Black "GelmanAlexander"]
[Result "1-0"]
[WhiteElo "2520"]
[BlackElo "2581"]
[TimeControl "180+1"]
[EndTime "11:56:22 PDT"]
[Termination "Th3_Hound won on time"]

1. e4 {[%clk 0:03:00.9]} 1... c5 {[%clk 0:02:59.6]} 2. Nf3 {[%clk 0:02:59.8]}
2... e6 {[%clk 0:02:59.7]} 3. d4 {[%clk 0:02:59.7]} 3... cxd4 {[%clk 0:02:59.9]}
4. Nxd4 {[%clk 0:03:00.6]} 4... a6 {[%clk 0:03:00.3]} 5. Nc3 {[%clk 0:02:58.4]}
5... d6 {[%clk 0:02:59.8]} 6. Be3 {[%clk 0:02:55]} 6... Nf6 {[%clk 0:02:56.5]}
7. f3 {[%clk 0:02:54.6]} 7... b5 {[%clk 0:02:55.9]} 8. Qd2 {[%clk 0:02:52.9]}
8... Bb7 {[%clk 0:02:56.1]} 9. O-O-O {[%clk 0:02:53]} 9... Nbd7 {[%clk
0:02:55.6]} 10. a3 {[%clk 0:02:45]} 10... Nb6 {[%clk 0:02:54.7]} 11. g4 {[%clk
0:02:37.1]} 11... Nfd7 {[%clk 0:02:54.6]} 12. h4 {[%clk 0:02:33.1]} 12... Rc8
{[%clk 0:02:53.2]} 13. g5 {[%clk 0:02:30.4]} 13... Ne5 {[%clk 0:02:53.2]} 14. h5
{[%clk 0:02:08.7]} 14... Be7 {[%clk 0:02:45.5]} 15. Rg1 {[%clk 0:02:04.9]} 15...
Nbc4 {[%clk 0:02:30.5]} 16. Bxc4 {[%clk 0:02:04.4]} 16... Nxc4 {[%clk
0:02:30.3]} 17. Qe1 {[%clk 0:02:01.9]} 17... O-O {[%clk 0:02:14.1]} 18. g6
{[%clk 0:01:58.5]} 18... Bf6 {[%clk 0:02:08.2]} 19. gxf7+ {[%clk 0:01:46.5]}
19... Rxf7 {[%clk 0:02:08.2]} 20. Nxe6 {[%clk 0:01:36.6]} 20... Qa5 {[%clk
0:02:08.2]} 21. Bd4 {[%clk 0:01:07.6]} 21... b4 {[%clk 0:01:44.8]} 22. Nd5
{[%clk 0:01:02.8]} 22... Bxd5 {[%clk 0:01:38.3]} 23. exd5 {[%clk 0:01:00.3]}
23... Nxa3 {[%clk 0:01:05.6]} 24. Rg2 {[%clk 0:00:25.7]} 24... Nc4 {[%clk
0:00:24.6]} 25. Kb1 {[%clk 0:00:21.7]} 25... Nxb2 {[%clk 0:00:18.6]} 26. Bxf6
{[%clk 0:00:14.2]} 26... Rxf6 {[%clk 0:00:10.3]} 27. Rxg7+ {[%clk 0:00:13.7]}
27... Kh8 {[%clk 0:00:10.5]} 28. Qe4 {[%clk 0:00:12.9]} 28... Rh6 {[%clk
0:00:05.8]} 29. Rdg1 {[%clk 0:00:10.9]} 29... Nc4 {[%clk 0:00:02.3]} 30. Qxc4
{[%clk 0:00:05.2]} 1-0